[Event "WTCC-50 2018"]
[Site "Radebeul"]
[Date "2018.07.10"]
[Round "4"]
[White "Denk, Adolf"]
[Black "Sirotkina, Nina"]
[Result "1/2-1/2"]
[ECO "E11"]
[WhiteElo "2262"]
[BlackElo "2175"]
[Annotator "NA"]
[PlyCount "43"]
[EventDate "2018.07.07"]
[EventType "team-tourn"]
[EventCountry "GER"]
[SourceTitle "playchess.com"]
[Source "ChessBase"]
[SourceQuality "1"]
[TimeControl "40/5400+30:1800+30"]

1. d4 {[%emt 0:00:16]} Nf6 {[%emt 0:00:20]} 2. Nf3 {[%emt 0:00:07]} e6 {[%emt 0:01:44]} 3. c4 {[%emt 0:00:12]} Bb4+ {[%emt 0:01:52]} 4. Nbd2 {[%emt 0:00:27]} b6 {[%emt 0:05:33]} 5. a3 {[%emt 0:02:01]} Bxd2+ {[%emt 0:01:03]} 6. Qxd2 {[%emt 0:01:15]} Bb7 {[%emt 0:02:02]} 7. e3 {[%emt 0:00:47]} O-O {[%emt 0:06:44]} 8. Be2 {[%emt 0:01:17]} d6 {[%emt 0:02:05]} 9. O-O {[%emt 0:01:41]} Nbd7 {[%emt 0:01:30]} 10. b3 {[%emt 0:01:00]} Qe7 {[%emt 0:02:32]} 11. Bb2 {[%emt 0:02:13]} a5 {[%emt 0:04:18]} 12. Rad1 {[%emt 0:01:36]} Rfd8 {[%emt 0:03:43]} 13. Qc1 {[%emt 0:03:49]} Ne4 {[%emt 0:15:21]} 14. Ne1 {[%emt 0:02:13]} e5 {[%emt 0:10:56]} 15. f3 {[%emt 0:10:52]} Nef6 {[%emt 0:00:25]} 16. Nc2 {[%emt 0:03:26]} Nf8 {[%emt 0:02:12]} 17. dxe5 {[%emt 0:10:49]} dxe5 {[%emt 0:00:26]} 18. Rxd8 {[%emt 0:00:12]} Rxd8 {[%emt 0:00:12]} 19. Rd1 {[%emt 0:00:02]} Rxd1+ {[%emt 0:04:35]} 20. Qxd1 {[%emt 0:01:32]} N6d7 {[%emt 0:00:36]} 21. Qd2 {[%emt 0:09:54]} Ne6 {[%emt 0:02:06]} 22. b4 {[%emt 0:03:15]} 1/2-1/2

[Event "WTCC-50 2018"]
[Site "Radebeul"]
[Date "2018.07.10"]
[Round "4"]
[White "Schoene, Ralf"]
[Black "Wong, Meng Kong"]
[Result "1/2-1/2"]
[ECO "D58"]
[WhiteElo "2256"]
[BlackElo "2248"]
[Annotator "NA"]
[PlyCount "122"]
[EventDate "2018.07.07"]
[EventType "team-tourn"]
[EventCountry "GER"]
[SourceTitle "playchess.com"]
[Source "ChessBase"]
[SourceQuality "1"]
[TimeControl "40/5400+30:1800+30"]

1. d4 {[%emt 0:00:00]} d5 {[%emt 0:00:00]} 2. c4 {[%emt 0:00:00]} e6 {[%emt 0:00:00]} 3. Nc3 {[%emt 0:00:00]} Be7 {[%emt 0:00:00]} 4. Nf3 {[%emt 0:00:00]} Nf6 {[%emt 0:00:00]} 5. Bg5 {[%emt 0:00:15]} O-O {[%emt 0:00:14]} 6. e3 {[%emt 0:00:06]} h6 {[%emt 0:00:17]} 7. Bh4 {[%emt 0:00:08]} b6 {[%emt 0:00:08]} 8. Be2 {[%emt 0:00:20]} Bb7 {[%emt 0:00:23]} 9. Bxf6 {[%emt 0:00:09]} Bxf6 {[%emt 0:00:05]} 10. cxd5 {[%emt 0:00:20]} exd5 {[%emt 0:00:05]} 11. b4 {[%emt 0:00:08]} c6 {[%emt 0:01:56]} 12. O-O {[%emt 0:01:25]} Qd6 {[%emt 0:07:16]} 13. Qb3 {[%emt 0:01:06]} Nd7 {[%emt 0:00:38]} 14. a4 {[%emt 0:05:09] D58: Queen's Gambit Declined: Tartakower Defence} (14. Rfd1 a6 15. a4 a5 16. bxa5 Rxa5 17. g3 Ba6 18. Bxa6 Rxa6 19. Rac1 Be7 20. Qc2 Rc8 21. Kg2 Qe6 22. Rb1 {½-½ (32) Istratescu,A (2589)-Szabo,G (2541) Olanesti 2018}) 14... a5 {[%emt 0:01:14]} 15. b5 {[%emt 0:02:54]} c5 {[%emt 0:00:09]} 16. Rfd1 {[%emt 0:07:57]} Rac8 {[%emt 0:04:16]} 17. Na2 $146 {[%emt 0:12:05]} ({Predecessor:} 17. Rac1 c4 18. Qc2 Rfe8 19. Nd2 Qe6 {1-0 (54) Belc,D-Marin,I (2261) Romania 1992}) 17... Rfe8 {[%emt 0:10:57]} 18. Bf1 {[%emt 0:04:04]} g6 {[%emt 0:09:05]} 19. Rac1 {[%emt 0:01:29]} Bg7 {[%emt 0:03:53]} 20. g3 {[%emt 0:07:33]} c4 {[%emt 0:05:22]} 21. Qc2 {[%emt 0:04:03]} Rc7 {[%emt 0:02:57]} 22. Nc3 {[%emt 0:01:32]} f5 {[%emt 0:03:14]} 23. Bg2 {[%emt 0:01:44]} Nf6 {[%emt 0:01:54]} 24. Ne5 {[%emt 0:01:22]} Ne4 {[%emt 0:00:12]} 25. f4 {[%emt 0:01:32]} h5 {[%emt 0:03:05]} 26. Nxe4 {[%emt 0:02:51]} fxe4 {[%emt 0:00:22]} 27. Bh3 {[%emt 0:03:58]} Bc8 {[%emt 0:01:58]} 28. Bxc8 {[%emt 0:00:24]} Rexc8 {[%emt 0:00:31]} 29. Nc6 {[%emt 0:01:06]} Qa3 {[%emt 0:03:53]} 30. Kf2 {[%emt 0:04:03]} Bf8 {[%emt 0:03:15]} 31. Ra1 {[%emt 0:01:02]} Qd6 {[%emt 0:00:06]} 32. Kg1 {[%emt 0:02:55]} Rxc6 {[%emt 0:01:13]} 33. bxc6 {[%emt 0:00:15]} Qxc6 {[%emt 0:00:06]} 34. Rf1 {[%emt 0:06:48]} Qf6 {[%emt 0:03:01]} 35. Ra2 {[%emt 0:03:14]} Rc7 {[%emt 0:01:35]} 36. Qd1 {[%emt 0:01:16]} Qf5 {[%emt 0:02:00]} 37. Kg2 {[%emt 0:03:44]} Bb4 {[%emt 0:01:46]} 38. h3 {[%emt 0:01:02]} Rh7 {[%emt 0:00:06]} 39. Rh1 {[%emt 0:02:36]} Qf6 {[%emt 0:04:53]} 40. Rf2 {[%emt 0:02:30]} Kf7 {[%emt 0:01:10]} 41. g4 {[%emt 0:31:50]} h4 {[%emt 0:30:06]} 42. Kf1 {[%emt 0:04:49]} Rh8 {[%emt 0:00:37]} 43. Rg1 {[%emt 0:00:46]} Rh7 {[%emt 0:02:37]} 44. g5 {[%emt 0:00:50]} Qf5 {[%emt 0:00:03]} 45. Rg4 {[%emt 0:00:14]} Kg8 {[%emt 0:01:16]} 46. Ra2 {[%emt 0:00:53]} Qd7 {[%emt 0:04:08]} 47. Kg1 {[%emt 0:01:50]} b5 {[%emt 0:02:41]} 48. Kf1 {[%emt 0:05:36]} bxa4 {[%emt 0:02:59]} 49. Qxa4 {[%emt 0:01:16]} Qxa4 {[%emt 0:00:53]} 50. Rxa4 {[%emt 0:00:05]} Rc7 {[%emt 0:00:21]} 51. Ra2 {[%emt 0:02:12]} c3 {[%emt 0:00:08]} 52. Rgg2 {[%emt 0:00:00]} Kf8 {[%emt 0:00:00]} 53. Rgc2 {[%emt 0:00:00]} Ke8 {[%emt 0:00:00]} 54. Ke1 {[%emt 0:00:00]} Kd7 {[%emt 0:00:00]} 55. Kd1 {[%emt 0:00:00]} Kc6 {[%emt 0:00:00]} 56. Rf2 {[%emt 0:00:00]} Rf7 {[%emt 0:00:00]} 57. Kc2 {[%emt 0:00:00]} Kb5 $18 {[%emt 0:00:00]} (57... Kd7 $16 58. f5 Rxf5 59. Rxf5 gxf5) 58. Rf1 {[%emt 0:00:00]} a4 {[%emt 0:00:00]} 59. Rfa1 {[%emt 0:00:00]} Ra7 {[%emt 0:00:00]} 60. Rf1 {[%emt 0:00:00]} Rf7 {[%emt 0:00:00]} 61. Rfa1 {[%emt 0:00:00]} Ra7 {[%emt 0:00:00]} 1/2-1/2

[Event "WTCC-50 2018"]
[Site "Radebeul"]
[Date "2018.07.10"]
[Round "4"]
[White "Kryukova, Irina"]
[Black "Wallner, Joachim"]
[Result "0-1"]
[ECO "B86"]
[WhiteElo "2249"]
[BlackElo "2311"]
[Annotator "NA"]
[PlyCount "68"]
[EventDate "2018.07.07"]
[EventType "team-tourn"]
[EventCountry "GER"]
[SourceTitle "playchess.com"]
[Source "ChessBase"]
[SourceQuality "1"]
[TimeControl "40/5400+30:1800+30"]

1. e4 {[%emt 0:00:00]} c5 {[%emt 0:00:52]} 2. Nf3 {[%emt 0:00:00]} e6 {[%emt 0:00:12]} 3. d4 {[%emt 0:01:18]} cxd4 {[%emt 0:00:17]} 4. Nxd4 {[%emt 0:00:08]} Nf6 {[%emt 0:00:55]} 5. Nc3 {[%emt 0:00:32]} d6 {[%emt 0:00:49]} 6. Bc4 {[%emt 0:01:41]} a6 {[%emt 0:01:14]} 7. Bb3 {[%emt 0:00:49]} Nbd7 {[%emt 0:00:40]} 8. O-O {[%emt 0:12:44]} Nc5 {[%emt 0:01:42]} 9. Re1 {[%emt 0:13:14]} Be7 {[%emt 0:00:52]} 10. f4 {[%emt 0:04:50]} O-O {[%emt 0:04:10]} 11. f5 {[%emt 0:12:14]} Nxb3 {[%emt 0:01:00]} 12. axb3 {[%emt 0:00:26]} Qc7 {[%emt 0:07:20]} 13. Qf3 {[%emt 0:05:14]} e5 {[%emt 0:10:14]} 14. Nde2 {[%emt 0:05:09]} b5 {[%emt 0:01:40]} 15. Bg5 {[%emt 0:07:36]} Bb7 {[%emt 0:02:37]} 16. Bxf6 {[%emt 0:05:28]} Bxf6 {[%emt 0:01:12]} 17. b4 {[%emt 0:04:22]} Qc4 {[%emt 0:03:23]} 18. Ng3 {[%emt 0:00:36]} Bd8 {[%emt 0:03:09]} 19. Nh5 {[%emt 0:07:44]} f6 {[%emt 0:00:25]} 20. Kh1 {[%emt 0:08:23]} Qxb4 {[%emt 0:01:12]} 21. Rad1 {[%emt 0:00:24]} Ba5 {[%emt 0:07:56]} 22. Re3 {[%emt 0:05:52]} Qxb2 {[%emt 0:00:22]} 23. Ne2 {[%emt 0:01:22]} Rf7 {[%emt 0:02:12]} 24. Qg4 {[%emt 0:01:15]} Bb4 {[%emt 0:03:42]} 25. Rb3 {[%emt 0:00:32]} Qxc2 {[%emt 0:00:12]} 26. Rbd3 {[%emt 0:00:10]} a5 {[%emt 0:01:35]} 27. Neg3 {[%emt 0:00:43]} a4 {[%emt 0:01:06]} 28. Nf1 {[%emt 0:00:32]} Qc4 {[%emt 0:00:48]} 29. Nhg3 {[%emt 0:00:26]} a3 {[%emt 0:00:55]} 30. Ne3 {[%emt 0:00:02]} Qc8 {[%emt 0:02:15]} 31. Rb3 {[%emt 0:00:10]} a2 {[%emt 0:00:44]} 32. Rxb4 {[%emt 0:00:41]} a1=Q {[%emt 0:00:08]} 33. Rxa1 {[%emt 0:00:06]} Rxa1+ {[%emt 0:00:06]} 34. Nef1 {[%emt 0:00:09]} Qc3 {[%emt 0:01:22]} 0-1

[Event "WTCC-50 2018"]
[Site "Radebeul"]
[Date "2018.07.10"]
[Round "4"]
[White "Schweitzer, Andreas"]
[Black "Fraser-Mitchell, Jeremy N"]
[Result "1-0"]
[ECO "C00"]
[WhiteElo "2239"]
[BlackElo "2060"]
[Annotator "NA"]
[PlyCount "59"]
[EventDate "2018.07.07"]
[EventType "team-tourn"]
[EventCountry "GER"]
[SourceTitle "playchess.com"]
[Source "ChessBase"]
[SourceQuality "1"]
[TimeControl "40/5400+30:1800+30"]

1. e4 {[%emt 0:00:00]} e6 {[%emt 0:09:25]} 2. d4 {[%emt 0:00:00]} d5 {[%emt 0:00:23]} 3. Bd3 {[%emt 0:00:08]} dxe4 {[%emt 0:09:11]} 4. Bxe4 {[%emt 0:00:13]} Nf6 {[%emt 0:00:06]} 5. Bf3 {[%emt 0:00:08]} Be7 {[%emt 0:04:06]} 6. Ne2 {[%emt 0:01:28]} O-O {[%emt 0:00:10]} 7. Nbc3 {[%emt 0:00:51]} c6 {[%emt 0:06:09]} 8. O-O {[%emt 0:02:00]} Nbd7 {[%emt 0:00:27]} 9. Bf4 {[%emt 0:05:57]} Nb6 {[%emt 0:04:39]} 10. Qd3 {[%emt 0:22:54]} Nbd5 {[%emt 0:06:01]} 11. Be5 {[%emt 0:02:08]} b6 {[%emt 0:11:40]} 12. Ne4 {[%emt 0:01:36]} Bb7 {[%emt 0:04:17]} 13. c4 {[%emt 0:03:49]} Nc7 {[%emt 0:07:37]} 14. Rad1 {[%emt 0:09:01]} Rc8 {[%emt 0:05:05]} 15. Rfe1 {[%emt 0:18:19]} Nce8 {[%emt 0:01:33]} 16. N2c3 {[%emt 0:06:52]} Nxe4 {[%emt 0:04:51]} 17. Bxe4 {[%emt 0:02:14]} g6 {[%emt 0:00:35]} 18. Qg3 {[%emt 0:01:30]} Ng7 {[%emt 0:07:26]} 19. Qh3 {[%emt 0:02:56]} Bd6 {[%emt 0:03:55]} 20. c5 {[%emt 0:02:33]} Bxe5 {[%emt 0:00:46]} 21. dxe5 {[%emt 0:00:02]} Qe7 {[%emt 0:00:34]} 22. Qe3 {[%emt 0:00:55]} Qc7 {[%emt 0:05:06]} 23. Bc2 {[%emt 0:05:30]} f5 {[%emt 0:02:13]} 24. exf6 {[%emt 0:00:30]} Rxf6 {[%emt 0:00:04]} 25. Ne4 {[%emt 0:01:07]} Rff8 {[%emt 0:00:12]} 26. Nd6 {[%emt 0:01:01]} Rcd8 {[%emt 0:00:34]} 27. Bb3 {[%emt 0:00:22]} bxc5 {[%emt 0:00:33]} 28. Bxe6+ {[%emt 0:00:57]} Nxe6 {[%emt 0:01:30]} 29. Qxe6+ {[%emt 0:00:02]} Kh8 {[%emt 0:01:23]} 30. Nf7+ {[%emt 0:01:18]} 1-0

[Event "WTCC-50 2018"]
[Site "Radebeul"]
[Date "2018.07.10"]
[Round "4"]
[White "Pieper, Thomas"]
[Black "Page, Mark E"]
[Result "1-0"]
[ECO "B96"]
[WhiteElo "2208"]
[BlackElo "2139"]
[Annotator "RC"]
[PlyCount "111"]
[EventDate "2018.07.07"]
[EventType "team-tourn"]
[EventCountry "GER"]
[SourceTitle "playchess.com"]
[Source "ChessBase"]
[SourceQuality "1"]
[TimeControl "40/5400+30:1800+30"]

1. e4 {[%emt 0:00:00]} c5 {[%emt 0:00:00]} 2. Nf3 {[%emt 0:00:00]} d6 {[%emt 0:00:00]} 3. d4 {[%emt 0:00:00]} cxd4 {[%emt 0:00:00]} 4. Nxd4 {[%emt 0:00:00]} Nf6 {[%emt 0:00:00]} 5. Nc3 {[%emt 0:00:03]} a6 {[%emt 0:00:03]} 6. Bg5 {[%emt 0:01:59]} e6 {[%emt 0:00:20]} 7. f4 {[%emt 0:00:05]} Nc6 {[%emt 0:01:24]} 8. Nxc6 {[%emt 0:01:40]} bxc6 {[%emt 0:00:06]} 9. e5 {[%emt 0:01:01]} h6 {[%emt 0:00:07]} 10. Bh4 {[%emt 0:00:48]} g5 {[%emt 0:00:06]} 11. fxg5 {[%emt 0:00:45]} Nd5 {[%emt 0:00:22]} 12. Ne4 {[%emt 0:08:50]} Qb6 {[%emt 0:02:13]} 13. Bd3 {[%emt 0:06:53]} hxg5 {[%emt 0:05:08]} 14. Bxg5 {[%emt 0:16:27]} Qxb2 {[%emt 0:03:32]} 15. Nf6+ {[%emt 0:04:39]} Nxf6 {[%emt 0:01:05]} 16. Bxf6 {[%emt 0:00:06]} Qb4+ {[%emt 0:09:31]} 17. Qd2 {[%emt 0:02:54]} Qxd2+ {[%emt 0:08:49]} 18. Kxd2 {[%emt 0:00:17]} Rg8 {[%emt 0:00:04]} 19. Be4 {[%emt 0:14:06]} d5 {[%emt 0:06:37]} 20. Bf3 {[%emt 0:00:09]} Be7 {[%emt 0:04:19]} 21. Bxe7 {[%emt 0:02:23]} Kxe7 {[%emt 0:01:45]} 22. Rab1 {[%emt 0:00:35]} f6 {[%emt 0:07:58]} 23. exf6+ {[%emt 0:00:40]} Kxf6 {[%emt 0:00:06]} 24. Rb6 {[%emt 0:01:07]} Bd7 {[%emt 0:00:15]} 25. h4 {[%emt 0:04:19]} Ke7 {[%emt 0:06:50]} 26. c4 {[%emt 0:07:13]} Kd6 {[%emt 0:04:18]} 27. Kc3 {[%emt 0:04:29]} Kc5 {[%emt 0:11:40]} 28. Rb7 {[%emt 0:01:05]} Rad8 {[%emt 0:00:46]} 29. Re1 {[%emt 0:01:18]} Bc8 {[%emt 0:08:07]} 30. Rf7 {[%emt 0:04:15]} Rdf8 {[%emt 0:01:55]} 31. Rxf8 {[%emt 0:01:45]} Rxf8 {[%emt 0:00:01]} 32. h5 {[%emt 0:05:06]} Rf4 {[%emt 0:01:06]} 33. cxd5 {[%emt 0:00:46]} cxd5 {[%emt 0:03:35]} 34. Kd3 {[%emt 0:01:31]} Kd6 {[%emt 0:01:07]} 35. Ke3 {[%emt 0:00:53]} e5 {[%emt 0:01:33]} 36. g3 {[%emt 0:01:06]} Ra4 {[%emt 0:00:39]} 37. Re2 {[%emt 0:05:56]} Ra3+ {[%emt 0:07:13]} 38. Kf2 {[%emt 0:00:07]} e4 {[%emt 0:00:38]} 39. Bg2 {[%emt 0:01:47]} Bf5 {[%emt 0:03:40]} 40. h6 {[%emt 0:01:52]} Ke5 {[%emt 0:00:25]} 41. Rb2 {[%emt 0:10:52]} d4 {[%emt 0:03:03]} 42. g4 {[%emt 0:07:47]} Bh7 {[%emt 0:04:57]} 43. Rb7 {[%emt 0:00:56]} Rxa2+ {[%emt 0:00:12]} 44. Kg3 {[%emt 0:01:35]} Ra3+ {[%emt 0:03:14]} 45. Kh2 {[%emt 0:03:33]} Bg6 {[%emt 0:02:55]} 46. Rg7 {[%emt 0:01:57]} Kf6 {[%emt 0:07:47]} 47. g5+ {[%emt 0:00:14]} Kf5 {[%emt 0:00:01]} 48. Bxe4+ {[%emt 0:00:29]} Kxe4 {[%emt 0:00:52]} 49. Rxg6 {[%emt 0:00:09]} Ra2+ {[%emt 0:01:17]} 50. Kg3 {[%emt 0:01:10]} Ra3+ {[%emt 0:01:20]} 51. Kg4 {[%emt 0:01:01]} d3 {[%emt 0:00:21]} 52. Re6+ {[%emt 0:01:08]} Kd5 {[%emt 0:00:12]} 53. Re8 {[%emt 0:00:14]} d2 {[%emt 0:10:39]} 54. Rd8+ {[%emt 0:00:12]} Ke6 {[%emt 0:00:04]} 55. Rxd2 {[%emt 0:02:07]} Kf7 {[%emt 0:00:37]} 56. Rd7+ {[%emt 0:00:45]} 1-0

[Event "WTCC-50 2018"]
[Site "Radebeul"]
[Date "2018.07.10"]
[Round "4"]
[White "Rohrmueller, Ulrich"]
[Black "Rewitz, Jan"]
[Result "1/2-1/2"]
[ECO "A48"]
[WhiteElo "2205"]
[BlackElo "2055"]
[Annotator "NA"]
[PlyCount "85"]
[EventDate "2018.07.07"]
[EventType "team-tourn"]
[EventCountry "GER"]
[SourceTitle "playchess.com"]
[Source "ChessBase"]
[SourceQuality "1"]
[TimeControl "40/5400+30:1800+30"]

1. Nf3 {[%emt 0:00:00]} Nf6 {[%emt 0:00:03]} 2. d4 {[%emt 0:00:27]} g6 {[%emt 0:00:07]} 3. Bf4 {[%emt 0:00:20]} Bg7 {[%emt 0:01:00]} 4. e3 {[%emt 0:00:11]} d6 {[%emt 0:00:58]} 5. h3 {[%emt 0:00:50]} O-O {[%emt 0:00:24]} 6. Be2 {[%emt 0:00:10]} c5 {[%emt 0:03:52]} 7. c3 {[%emt 0:00:27]} cxd4 {[%emt 0:02:21]} 8. exd4 {[%emt 0:00:20]} Nd5 {[%emt 0:07:12]} 9. Bh2 {[%emt 0:11:30]} Bh6 {[%emt 0:02:03]} 10. O-O {[%emt 0:01:03]} Nf4 {[%emt 0:00:33]} 11. Bc4 {[%emt 0:01:38]} Nc6 {[%emt 0:03:28]} 12. Re1 {[%emt 0:00:34]} Qc7 {[%emt 0:06:13]} 13. Na3 {[%emt 0:03:09]} a6 {[%emt 0:04:59]} 14. Bf1 {[%emt 0:01:42]} b5 {[%emt 0:03:29]} 15. Nc2 {[%emt 0:00:30]} e5 {[%emt 0:01:54]} 16. a4 {[%emt 0:07:30]} Rb8 {[%emt 0:00:42]} 17. axb5 {[%emt 0:00:15]} axb5 {[%emt 0:00:03]} 18. Ne3 {[%emt 0:00:36]} Ne7 {[%emt 0:10:48]} 19. Ng4 {[%emt 0:16:56]} Bxg4 {[%emt 0:02:14]} 20. hxg4 {[%emt 0:00:06]} Bg7 {[%emt 0:07:48]} 21. Bxf4 {[%emt 0:08:49]} exf4 {[%emt 0:00:03]} 22. Qb3 {[%emt 0:01:57]} Nc6 {[%emt 0:08:44]} 23. Qd5 {[%emt 0:03:59]} b4 {[%emt 0:08:53]} 24. Ra6 {[%emt 0:07:51]} Rbc8 {[%emt 0:03:18]} 25. c4 {[%emt 0:08:33]} b3 {[%emt 0:01:55]} 26. Ra4 {[%emt 0:08:43]} Qd7 {[%emt 0:02:20]} 27. c5 {[%emt 0:03:32]} Nb8 {[%emt 0:07:39]} 28. Qxb3 {[%emt 0:01:29]} dxc5 {[%emt 0:00:21]} 29. dxc5 {[%emt 0:00:08]} Rxc5 {[%emt 0:01:15]} 30. Rxf4 {[%emt 0:00:33]} Nc6 {[%emt 0:00:55]} 31. Rd1 {[%emt 0:03:34]} Qc7 {[%emt 0:00:41]} 32. Qe3 {[%emt 0:00:27]} Ne5 {[%emt 0:02:00]} 33. Nxe5 {[%emt 0:03:19]} Rxe5 {[%emt 0:02:23]} 34. Qd3 {[%emt 0:02:31]} Rc5 {[%emt 0:01:45]} 35. Rc4 {[%emt 0:01:30]} Rxc4 {[%emt 0:00:52]} 36. Qxc4 {[%emt 0:00:06]} Qxc4 {[%emt 0:00:08]} 37. Bxc4 {[%emt 0:00:05]} Bxb2 {[%emt 0:00:02]} 38. Rd7 {[%emt 0:00:20]} h6 {[%emt 0:00:26]} 39. g3 {[%emt 0:00:35]} Kg7 {[%emt 0:00:13]} 40. Kg2 {[%emt 0:00:25]} Bf6 {[%emt 0:01:05]} 41. f4 {[%emt 0:33:12]} Bc3 {[%emt 0:32:51]} 42. Kf3 {[%emt 0:00:00]} Bf6 {[%emt 0:00:00]} 43. Rb7 1/2-1/2

[Event "WTCC-50 2018"]
[Site "Radebeul"]
[Date "2018.07.10"]
[Round "4"]
[White "Polster, Wolfgang"]
[Black "Casper, Thomas"]
[Result "1/2-1/2"]
[ECO "C09"]
[WhiteElo "2203"]
[BlackElo "2354"]
[Annotator "NA"]
[PlyCount "85"]
[EventDate "2018.07.07"]
[EventType "team-tourn"]
[EventCountry "GER"]
[SourceTitle "playchess.com"]
[Source "ChessBase"]
[SourceQuality "1"]
[TimeControl "40/5400+30:1800+30"]

1. e4 e6 {[%emt 0:00:00]} 2. d4 {[%emt 0:00:04]} d5 {[%emt 0:00:14]} 3. Nd2 {[%emt 0:00:07]} c5 {[%emt 0:00:50]} 4. Ngf3 {[%emt 0:00:16]} Nc6 {[%emt 0:00:33]} 5. exd5 {[%emt 0:00:38]} exd5 {[%emt 0:00:32]} 6. Bb5 {[%emt 0:00:33]} Bd6 {[%emt 0:00:45]} 7. O-O {[%emt 0:00:28]} Nge7 {[%emt 0:00:16]} 8. c4 {[%emt 0:00:29]} a6 {[%emt 0:14:35]} 9. cxd5 {[%emt 0:07:19]} axb5 {[%emt 0:06:04]} 10. dxc6 {[%emt 0:05:27]} Nxc6 {[%emt 0:43:58]} 11. dxc5 {[%emt 0:04:44]} Bxc5 {[%emt 0:00:15]} 12. Ne4 {[%emt 0:02:39]} Qxd1 {[%emt 0:01:04]} 13. Rxd1 {[%emt 0:00:18]} Be7 {[%emt 0:00:04]} 14. Bf4 {[%emt 0:09:26]} O-O {[%emt 0:07:31]} 15. Bd6 {[%emt 0:03:57]} Bxd6 {[%emt 0:02:00]} 16. Nxd6 {[%emt 0:02:50]} b4 {[%emt 0:00:15]} 17. h3 {[%emt 0:04:30]} h6 {[%emt 0:04:08]} 18. Rd2 {[%emt 0:07:09]} Ra7 {[%emt 0:03:54]} 19. b3 {[%emt 0:03:03]} Be6 {[%emt 0:02:23]} 20. Rc1 {[%emt 0:00:14]} Rd8 {[%emt 0:01:11]} 21. Rcc2 {[%emt 0:02:20]} Kf8 {[%emt 0:02:44]} 22. g4 {[%emt 0:05:56]} g6 {[%emt 0:00:54]} 23. Kh2 {[%emt 0:02:38]} Ke7 {[%emt 0:02:20]} 24. Nb5 {[%emt 0:06:19]} Rxd2 {[%emt 0:00:13]} 25. Rxd2 {[%emt 0:01:25]} Ra5 {[%emt 0:00:13]} 26. Nfd4 {[%emt 0:01:27]} Bd7 {[%emt 0:02:28]} 27. Re2+ {[%emt 0:00:27]} Kf8 {[%emt 0:01:05]} 28. Kg3 {[%emt 0:01:34]} Ne7 {[%emt 0:01:13]} 29. Nc7 {[%emt 0:01:14]} Nc6 {[%emt 0:00:52]} 30. Nf3 {[%emt 0:00:46]} Rc5 {[%emt 0:01:14]} 31. Rd2 {[%emt 0:00:25]} Bc8 {[%emt 0:00:52]} 32. Nd5 {[%emt 0:00:27]} Be6 {[%emt 0:00:13]} 33. Nf4 {[%emt 0:01:33]} Bc8 {[%emt 0:00:41]} 34. Nd4 {[%emt 0:01:45]} Ke7 {[%emt 0:00:33]} 35. f3 {[%emt 0:00:36]} Ra5 {[%emt 0:00:30]} 36. Nfe2 {[%emt 0:00:52]} Be6 {[%emt 0:00:39]} 37. Nxe6 {[%emt 0:10:26]} Kxe6 {[%emt 0:00:02]} 38. f4 {[%emt 0:01:03]} Rc5 {[%emt 0:00:55]} 39. Kf3 {[%emt 0:00:18]} Ra5 {[%emt 0:00:25]} 40. Ke4 {[%emt 0:01:00]} f5+ {[%emt 0:00:27]} 41. gxf5+ {[%emt 0:31:27]} gxf5+ {[%emt 0:02:37]} 42. Ke3 {[%emt 0:00:00]} Rc5 {[%emt 0:03:06] Ke4 Ke5+} 43. Kf3 {[%emt 0:00:00]} 1/2-1/2

[Event "WTCC-50 2018"]
[Site "Radebeul"]
[Date "2018.07.10"]
[Round "4"]
[White "Pedersen, Gunnar"]
[Black "Grawe, Christian"]
[Result "1/2-1/2"]
[ECO "D15"]
[WhiteElo "2201"]
[BlackElo "2231"]
[Annotator "NA"]
[PlyCount "31"]
[EventDate "2018.07.07"]
[EventType "team-tourn"]
[EventCountry "GER"]
[SourceTitle "playchess.com"]
[Source "ChessBase"]
[SourceQuality "1"]
[TimeControl "40/5400+30:1800+30"]

1. d4 {[%emt 0:00:00]} Nf6 {[%emt 0:00:00]} 2. Nf3 {[%emt 0:00:03]} d5 {[%emt 0:00:25]} 3. c4 {[%emt 0:00:07]} c6 {[%emt 0:00:05]} 4. Nc3 {[%emt 0:00:18]} dxc4 {[%emt 0:00:34]} 5. e4 {[%emt 0:00:36]} b5 {[%emt 0:00:15]} 6. e5 {[%emt 0:00:15]} Nd5 {[%emt 0:00:08]} 7. a4 {[%emt 0:00:18]} e6 {[%emt 0:00:23]} 8. Ng5 {[%emt 0:00:59]} Be7 {[%emt 0:00:48]} 9. Nge4 {[%emt 0:00:14]} b4 {[%emt 0:03:10]} 10. Nb1 {[%emt 0:07:11]} Ba6 {[%emt 0:00:47]} 11. Nbd2 {[%emt 0:00:23]} c3 {[%emt 0:01:14]} 12. Nc4 {[%emt 0:00:20]} cxb2 {[%emt 0:00:27]} 13. Bxb2 {[%emt 0:00:34]} O-O {[%emt 0:03:54]} 14. Rc1 {[%emt 0:28:26]} Nd7 {[%emt 0:10:21]} 15. Be2 {[%emt 0:02:11]} N7b6 {[%emt 0:15:23]} 16. Nxb6 {[%emt 0:07:18]} 1/2-1/2

[Event "WTCC-50 2018"]
[Site "Radebeul"]
[Date "2018.07.10"]
[Round "4"]
[White "Schoeneberg, Manfred"]
[Black "Hutschenreiter, Joerg"]
[Result "1/2-1/2"]
[ECO "B53"]
[WhiteElo "2199"]
[BlackElo "2023"]
[Annotator "NA"]
[PlyCount "23"]
[EventDate "2018.07.07"]
[EventType "team-tourn"]
[EventCountry "GER"]
[SourceTitle "playchess.com"]
[Source "ChessBase"]
[SourceQuality "1"]
[TimeControl "40/5400+30:1800+30"]

1. e4 {[%emt 0:01:06]} c5 {[%emt 0:00:00]} 2. Nf3 {[%emt 0:00:18]} d6 {[%emt 0:00:00]} 3. d4 {[%emt 0:00:37]} cxd4 {[%emt 0:00:00]} 4. Qxd4 {[%emt 0:00:24]} a6 {[%emt 0:00:52]} 5. Be3 {[%emt 0:00:53]} Nf6 {[%emt 0:00:57]} 6. Nc3 {[%emt 0:01:17]} e5 {[%emt 0:00:59]} 7. Qd2 {[%emt 0:05:20]} Be7 {[%emt 0:01:13]} 8. Bg5 {[%emt 0:03:44]} Nbd7 {[%emt 0:01:41]} 9. Bd3 {[%emt 0:04:55]} h6 {[%emt 0:01:56]} 10. Bxf6 {[%emt 0:02:04]} Nxf6 {[%emt 0:00:03]} 11. h3 {[%emt 0:00:26]} O-O {[%emt 0:01:44]} 12. O-O 1/2-1/2

[Event "WTCC-50 2018"]
[Site "Radebeul"]
[Date "2018.07.10"]
[Round "4"]
[White "Fatalibekova, Elena"]
[Black "Druckenthaner, Andreas"]
[Result "1/2-1/2"]
[ECO "B00"]
[WhiteElo "2195"]
[BlackElo "2296"]
[Annotator "NA"]
[PlyCount "50"]
[EventDate "2018.07.07"]
[EventType "team-tourn"]
[EventCountry "GER"]
[SourceTitle "playchess.com"]
[Source "ChessBase"]
[SourceQuality "1"]
[TimeControl "40/5400+30:1800+30"]

1. e4 {[%emt 0:00:00]} Nc6 {[%emt 0:00:00]} 2. Nf3 {[%emt 0:00:02]} d6 {[%emt 0:00:00]} 3. d4 {[%emt 0:00:13]} Nf6 {[%emt 0:00:02]} 4. Nc3 {[%emt 0:00:13]} g6 {[%emt 0:00:09]} 5. Be2 {[%emt 0:01:47]} Bg7 {[%emt 0:00:09]} 6. h3 {[%emt 0:01:40]} O-O {[%emt 0:00:10]} 7. Be3 {[%emt 0:00:06]} a6 {[%emt 0:02:58]} 8. O-O {[%emt 0:03:05]} e5 {[%emt 0:03:33]} 9. dxe5 {[%emt 0:03:10]} Nxe5 {[%emt 0:00:12]} 10. Nxe5 {[%emt 0:06:06]} dxe5 {[%emt 0:00:19]} 11. Qxd8 {[%emt 0:04:37]} Rxd8 {[%emt 0:00:39]} 12. Rfd1 {[%emt 0:00:02]} Be6 {[%emt 0:00:45]} 13. a4 {[%emt 0:00:02]} h6 {[%emt 0:00:51]} 14. a5 {[%emt 0:00:31]} Bf8 {[%emt 0:09:32]} 15. f3 {[%emt 0:00:10]} Kh7 {[%emt 0:09:12]} 16. Na4 {[%emt 0:04:22]} Nd7 {[%emt 0:08:36]} 17. c3 {[%emt 0:07:38]} Bb3 {[%emt 0:04:44]} 18. Rd2 {[%emt 0:00:02]} Nf6 {[%emt 0:09:10]} 19. Kf2 {[%emt 0:06:49]} Rxd2 {[%emt 0:02:54]} 20. Bxd2 {[%emt 0:00:02]} Rd8 {[%emt 0:00:28]} 21. Be3 {[%emt 0:00:44]} Nd7 {[%emt 0:11:56]} 22. Bd1 {[%emt 0:02:25]} Be6 {[%emt 0:04:38]} 23. Bc2 {[%emt 0:00:40]} Nc5 {[%emt 0:04:03]} 24. Nxc5 {[%emt 0:03:51]} Bxc5 {[%emt 0:00:20]} 25. Rd1 {[%emt 0:00:10]} Rxd1 1/2-1/2